[Event "2026 European Womens Championship"]
[Site "Batumi, GE"]
[Date "2026.05.26"]
[Round "2"]
[White "Gaponenko, Inna"]
[Black "Ismayil, Malak"]
[Result "1-0"]
[Board "42"]
[TimeControl "5400+30"]
[WhiteFideId "14101181"]
[BlackFideId "13412604"]
[WhiteElo "2331"]
[BlackElo "2122"]
[WhiteTitle "IM"]
[BlackTitle "WIM"]
[WhiteClock "0:02:35"]
[BlackClock "0:03:27"]
[Variant "Standard"]

1. e4 {[%clk 1:30:56]}  e5 {[%clk 1:30:56]} 2. Nf3 {[%clk 1:31:21]}  Nc6 {[%clk 1:31:23]} 3. Bb5 {[%clk 1:31:45]}  a6 {[%clk 1:31:49]}
4. Ba4 {[%clk 1:32:11]}  Nf6 {[%clk 1:32:15]} 5. O-O {[%clk 1:32:32]}  Be7 {[%clk 1:32:27]} 6. Bxc6 {[%clk 1:32:09]}  dxc6 {[%clk 1:32:53]}
7. Re1 {[%clk 1:32:17]}  Bg4 {[%clk 1:30:51]} 8. h3 {[%clk 1:18:31]}  Bxf3 {[%clk 1:30:58]} 9. Qxf3 {[%clk 1:18:59]}  Bc5 {[%clk 1:12:58]}
10. d3 {[%clk 1:14:47]}  Qe7 {[%clk 1:11:36]} 11. Nd2 {[%clk 1:13:02]}  Nd7 {[%clk 1:06:35]} 12. c3 {[%clk 1:05:38]}  h5 {[%clk 0:54:14]}
13. b4 {[%clk 0:59:40]}  Ba7 {[%clk 0:53:02]} 14. Nf1 {[%clk 0:50:51]}  O-O-O {[%clk 0:28:34]} 15. Be3 {[%clk 0:49:24]}  Bxe3 {[%clk 0:28:45]}
16. Qxe3 {[%clk 0:47:46]}  b6 {[%clk 0:23:32]} 17. a4 {[%clk 0:46:24]}  Kb7 {[%clk 0:23:26]} 18. Rab1 {[%clk 0:38:55]}  Nf8 {[%clk 0:21:13]}
19. d4 {[%clk 0:38:07]}  exd4 {[%clk 0:18:15]} 20. cxd4 {[%clk 0:38:33]}  Qd6 {[%clk 0:15:53]} 21. d5 {[%clk 0:23:42]}  cxd5 {[%clk 0:15:51]}
22. exd5 {[%clk 0:24:11]}  Ng6 {[%clk 0:14:56]} 23. Red1 {[%clk 0:24:32]}  Ne5 {[%clk 0:09:54]} 24. Ng3 {[%clk 0:18:13]}  Rhe8 {[%clk 0:01:27]}
25. Nxh5 {[%clk 0:15:15]}  g6 {[%clk 0:01:29]} 26. Ng3 {[%clk 0:14:50]}  f5 {[%clk 0:01:54]} 27. Qc3 {[%clk 0:07:05]}  Re7 {[%clk 0:01:08]}
28. Rd4 {[%clk 0:05:11]}  Rde8 {[%clk 0:01:10]} 29. Rbd1 {[%clk 0:05:10]}  Nd7 {[%clk 0:00:38]} 30. Qc6+ {[%clk 0:00:43]}  Kb8 {[%clk 0:01:08]}
31. Qxd6 {[%clk 0:01:02]}  cxd6 {[%clk 0:01:37]} 32. Kf1 {[%clk 0:00:35]}  Rc8 {[%clk 0:01:01]} 33. Ne2 {[%clk 0:00:50]}  g5 {[%clk 0:01:18]}
34. h4 {[%clk 0:01:00]}  gxh4 {[%clk 0:00:37]} 35. Rxh4 {[%clk 0:01:19]}  Re5 {[%clk 0:00:40]} 36. Nd4 {[%clk 0:00:59]}  Kb7 {[%clk 0:00:50]}
37. Rh7 {[%clk 0:00:35]}  Rc7 {[%clk 0:00:37]} 38. Ne6 {[%clk 0:00:53]}  Re4 {[%clk 0:00:48]} 39. Nxc7 {[%clk 0:00:57]}  Kxc7 {[%clk 0:01:15]}
40. Rc1+ {[%clk 0:00:57]}  Kd8 {[%clk 0:01:41]} 41. Rc6 {[%clk 0:01:21]}  Nf8 {[%clk 0:01:27]} 42. Rh8 {[%clk 0:01:07]}  Re8 {[%clk 0:01:25]}
43. Rxd6+ {[%clk 0:01:32]}  Ke7 {[%clk 0:01:49]} 44. Rxb6 {[%clk 0:01:50]}  Rd8 {[%clk 0:02:09]} 45. Rxa6 {[%clk 0:01:38]}  Rxd5 {[%clk 0:02:35]}
46. Ra7+ {[%clk 0:01:56]}  Nd7 {[%clk 0:03:00]} 47. Rh7+ {[%clk 0:02:19]}  Ke6 {[%clk 0:03:27]} 48. Rhxd7 {[%clk 0:02:35]} 1-0

[Event "2026 European Womens Championship"]
[Site "Batumi, GE"]
[Date "2026.05.26"]
[Round "2"]
[White "Nenova, Andzhelika"]
[Black "Rakhmangulova, Anastasiya"]
[Result "0-1"]
[Board "43"]
[TimeControl "5400+30"]
[WhiteFideId "2939355"]
[BlackFideId "14117479"]
[WhiteElo "2072"]
[BlackElo "2328"]
[BlackTitle "WGM"]
[WhiteClock "0:03:43"]
[BlackClock "0:30:48"]
[Variant "Standard"]

1. e4 {[%clk 1:30:50]}  c5 {[%clk 1:30:54]} 2. Nf3 {[%clk 1:31:12]}  e6 {[%clk 1:31:20]} 3. d4 {[%clk 1:31:31]}  cxd4 {[%clk 1:31:44]}
4. Nxd4 {[%clk 1:31:54]}  a6 {[%clk 1:32:11]} 5. Be2 {[%clk 1:31:34]}  Nf6 {[%clk 1:32:13]} 6. Nc3 {[%clk 1:30:33]}  Qc7 {[%clk 1:32:34]}
7. O-O {[%clk 1:29:39]}  Nc6 {[%clk 1:32:42]} 8. Re1 {[%clk 1:19:14]}  Nxd4 {[%clk 1:26:02]} 9. Qxd4 {[%clk 1:19:31]}  Bc5 {[%clk 1:26:22]}
10. Qd3 {[%clk 1:18:37]}  h5 {[%clk 1:22:30]} 11. Qg3 {[%clk 1:02:43]}  Qxg3 {[%clk 1:20:15]} 12. hxg3 {[%clk 1:02:39]}  d6 {[%clk 1:20:21]}
13. Bf4 {[%clk 0:59:58]}  Ng4 {[%clk 1:13:34]} 14. Bxg4 {[%clk 0:56:10]}  hxg4 {[%clk 1:13:59]} 15. Rad1 {[%clk 0:55:47]}  Bd7 {[%clk 1:09:40]}
16. Bxd6 {[%clk 0:52:23]}  Bb6 {[%clk 1:09:45]} 17. Be5 {[%clk 0:48:52]}  f6 {[%clk 1:07:59]} 18. Bd4 {[%clk 0:49:10]}  Bc7 {[%clk 1:08:20]}
19. Rd3 {[%clk 0:43:39]}  O-O-O {[%clk 1:06:27]} 20. Red1 {[%clk 0:43:34]}  Rh5 {[%clk 1:04:27]} 21. Kf1 {[%clk 0:39:54]}  Bc6 {[%clk 0:59:05]}
22. a3 {[%clk 0:35:56]}  Rh1+ {[%clk 0:58:08]} 23. Ke2 {[%clk 0:36:16]}  Rh2 {[%clk 0:58:36]} 24. Kf1 {[%clk 0:35:46]}  f5 {[%clk 0:56:22]}
25. Bxg7 {[%clk 0:32:01]}  Rg8 {[%clk 0:56:42]} 26. Bd4 {[%clk 0:29:24]}  fxe4 {[%clk 0:56:56]} 27. Re3 {[%clk 0:28:01]}  Rd8 {[%clk 0:54:30]}
28. Kg1 {[%clk 0:25:27]}  Rh7 {[%clk 0:51:00]} 29. Ree1 {[%clk 0:23:21]}  Rh5 {[%clk 0:39:57]} 30. Be3 {[%clk 0:18:03]}  Rdh8 {[%clk 0:40:09]}
31. Kf1 {[%clk 0:18:23]}  Rh2 {[%clk 0:37:18]} 32. Bd4 {[%clk 0:08:59]}  R8h7 {[%clk 0:35:08]} 33. Be3 {[%clk 0:07:36]}  Be5 {[%clk 0:34:58]}
34. Ke2 {[%clk 0:06:52]}  Rxg2 {[%clk 0:29:26]} 35. Rg1 {[%clk 0:06:28]}  Rgh2 {[%clk 0:24:51]} 36. Kd2 {[%clk 0:06:35]}  Bg7 {[%clk 0:24:57]}
37. Ke2 {[%clk 0:04:05]}  Bf8 {[%clk 0:21:02]} 38. Bb6 {[%clk 0:03:24]}  Be7 {[%clk 0:20:29]} 39. Be3 {[%clk 0:02:30]}  R7h5 {[%clk 0:20:05]}
40. Rde1 {[%clk 0:00:48]}  b5 {[%clk 0:17:45]} 41. Rd1 {[%clk 0:28:52]}  a5 {[%clk 0:46:26]} 42. Rd4 {[%clk 0:19:47]}  Bc5 {[%clk 0:42:56]}
43. Rdd1 {[%clk 0:17:45]}  b4 {[%clk 0:41:42]} 44. axb4 {[%clk 0:16:05]}  axb4 {[%clk 0:42:08]} 45. Nb1 {[%clk 0:15:36]}  Bb5+ {[%clk 0:38:39]}
46. Kd2 {[%clk 0:15:55]}  Rxf2+ {[%clk 0:36:13]} 47. Bxf2 {[%clk 0:14:57]}  Bxf2 {[%clk 0:36:38]} 48. Rge1 {[%clk 0:04:01]}  Rd5+ {[%clk 0:35:45]}
49. Kc1 {[%clk 0:04:29]}  e3 {[%clk 0:35:43]} 50. c3 {[%clk 0:03:27]}  Rxd1+ {[%clk 0:31:26]} 51. Kxd1 {[%clk 0:03:43]}  Bxe1 {[%clk 0:30:48]} 0-1

[Event "2026 European Womens Championship"]
[Site "Batumi, GE"]
[Date "2026.05.26"]
[Round "2"]
[White "Liashkevich, Lizaveta"]
[Black "Iglesias, Yosha"]
[Result "1/2-1/2"]
[Board "44"]
[TimeControl "5400+30"]
[WhiteFideId "13518658"]
[BlackFideId "637823"]
[WhiteElo "2079"]
[BlackElo "2325"]
[WhiteTitle "WFM"]
[BlackTitle "FM"]
[WhiteClock "0:00:40"]
[BlackClock "0:06:10"]
[Variant "Standard"]

1. e4 {[%clk 1:30:48]}  c6 {[%clk 1:30:47]} 2. d4 {[%clk 1:31:12]}  d5 {[%clk 1:31:10]} 3. Nd2 {[%clk 1:31:31]}  dxe4 {[%clk 1:31:28]}
4. Nxe4 {[%clk 1:31:56]}  Nf6 {[%clk 1:31:40]} 5. Nxf6+ {[%clk 1:32:09]}  exf6 {[%clk 1:32:04]} 6. c3 {[%clk 1:32:16]}  a5 {[%clk 1:30:41]}
7. a4 {[%clk 1:27:25]}  Bd6 {[%clk 1:29:30]} 8. Bd3 {[%clk 1:27:32]}  O-O {[%clk 1:29:25]} 9. Ne2 {[%clk 1:27:43]}  Re8 {[%clk 1:27:20]}
10. O-O {[%clk 1:26:49]}  Na6 {[%clk 1:23:12]} 11. Bf4 {[%clk 1:00:31]}  Bg4 {[%clk 1:18:05]} 12. Bxd6 {[%clk 0:55:08]}  Qxd6 {[%clk 1:13:58]}
13. Qc2 {[%clk 0:49:58]}  Bxe2 {[%clk 1:13:41]} 14. Bxe2 {[%clk 0:50:25]}  Nc7 {[%clk 1:12:36]} 15. Bc4 {[%clk 0:45:07]}  h5 {[%clk 0:52:18]}
16. Qg6 {[%clk 0:41:12]}  Nd5 {[%clk 0:37:54]} 17. Qxh5 {[%clk 0:40:49]}  g6 {[%clk 0:33:05]} 18. Qh6 {[%clk 0:33:54]}  Re4 {[%clk 0:32:14]}
19. Rae1 {[%clk 0:23:57]}  Rae8 {[%clk 0:32:25]} 20. Rxe4 {[%clk 0:23:19]}  Rxe4 {[%clk 0:32:49]} 21. Bd3 {[%clk 0:21:08]}  Re8 {[%clk 0:28:33]}
22. Qd2 {[%clk 0:14:55]}  Nf4 {[%clk 0:27:20]} 23. Bc4 {[%clk 0:13:42]}  Kg7 {[%clk 0:23:45]} 24. Re1 {[%clk 0:12:08]}  Rh8 {[%clk 0:23:27]}
25. g3 {[%clk 0:11:52]}  Nh3+ {[%clk 0:23:35]} 26. Kg2 {[%clk 0:11:43]}  Qd7 {[%clk 0:21:34]} 27. f4 {[%clk 0:06:22]}  b5 {[%clk 0:17:40]}
28. axb5 {[%clk 0:06:22]}  cxb5 {[%clk 0:18:06]} 29. Bd3 {[%clk 0:04:53]}  g5 {[%clk 0:14:44]} 30. f5 {[%clk 0:04:29]}  b4 {[%clk 0:08:59]}
31. Be4 {[%clk 0:04:20]}  bxc3 {[%clk 0:09:09]} 32. bxc3 {[%clk 0:04:37]}  a4 {[%clk 0:09:22]} 33. Qa2 {[%clk 0:03:01]}  Re8 {[%clk 0:06:01]}
34. Qe2 {[%clk 0:02:02]}  Rh8 {[%clk 0:05:22]} 35. Qa2 {[%clk 0:01:55]}  Re8 {[%clk 0:05:46]} 36. Qe2 {[%clk 0:02:22]}  Rh8 {[%clk 0:06:10]}
37. Qa2 {[%clk 0:00:40]} 1/2-1/2

[Event "2026 European Womens Championship"]
[Site "Batumi, GE"]
[Date "2026.05.26"]
[Round "2"]
[White "Toncheva, Nadya"]
[Black "Deak-Sala, Emilia"]
[Result "1-0"]
[Board "45"]
[TimeControl "5400+30"]
[WhiteFideId "2924056"]
[BlackFideId "795615"]
[WhiteElo "2320"]
[BlackElo "2086"]
[WhiteTitle "WGM"]
[BlackTitle "WFM"]
[WhiteClock "0:24:38"]
[BlackClock "0:07:30"]
[Variant "Standard"]

1. e4 {[%clk 1:30:57]}  c5 {[%clk 1:30:45]} 2. c3 {[%clk 1:31:21]}  d5 {[%clk 1:31:09]} 3. exd5 {[%clk 1:31:23]}  Qxd5 {[%clk 1:31:33]}
4. Nf3 {[%clk 1:31:48]}  Nf6 {[%clk 1:31:59]} 5. d4 {[%clk 1:32:11]}  e6 {[%clk 1:32:15]} 6. Be3 {[%clk 1:30:54]}  Nc6 {[%clk 1:30:39]}
7. dxc5 {[%clk 1:24:56]}  Qxd1+ {[%clk 1:29:00]} 8. Kxd1 {[%clk 1:25:19]}  Nd5 {[%clk 1:29:27]} 9. Bd4 {[%clk 1:23:40]}  f6 {[%clk 1:27:34]}
10. Bc4 {[%clk 1:21:33]}  Nde7 {[%clk 1:25:11]} 11. Na3 {[%clk 1:09:45]}  a6 {[%clk 1:18:42]} 12. b4 {[%clk 1:06:38]}  e5 {[%clk 1:08:21]}
13. Be3 {[%clk 1:07:02]}  Bg4 {[%clk 1:08:40]} 14. h3 {[%clk 0:59:51]}  Bxf3+ {[%clk 0:54:29]} 15. gxf3 {[%clk 1:00:06]}  Nf5 {[%clk 0:54:47]}
16. Ke2 {[%clk 0:59:08]}  Nxe3 {[%clk 0:49:13]} 17. fxe3 {[%clk 0:59:30]}  O-O-O {[%clk 0:49:26]} 18. Be6+ {[%clk 0:57:34]}  Kb8 {[%clk 0:49:14]}
19. Nc4 {[%clk 0:57:16]}  g6 {[%clk 0:48:45]} 20. a4 {[%clk 0:56:37]}  Na7 {[%clk 0:39:02]} 21. Nb6 {[%clk 0:50:47]}  Bg7 {[%clk 0:37:48]}
22. Rad1 {[%clk 0:43:11]}  Kc7 {[%clk 0:30:32]} 23. Bc4 {[%clk 0:37:04]}  Rxd1 {[%clk 0:27:13]} 24. Rxd1 {[%clk 0:37:28]}  Rd8 {[%clk 0:27:35]}
25. Nd5+ {[%clk 0:36:24]}  Kb8 {[%clk 0:27:40]} 26. e4 {[%clk 0:33:26]}  f5 {[%clk 0:24:32]} 27. Rb1 {[%clk 0:31:23]}  Bf8 {[%clk 0:22:57]}
28. Nb6 {[%clk 0:26:14]}  Nc8 {[%clk 0:13:08]} 29. Nxc8 {[%clk 0:26:15]}  Kxc8 {[%clk 0:13:36]} 30. exf5 {[%clk 0:26:37]}  gxf5 {[%clk 0:13:53]}
31. Be6+ {[%clk 0:27:00]}  Kc7 {[%clk 0:14:20]} 32. Bxf5 {[%clk 0:27:23]}  Bh6 {[%clk 0:14:46]} 33. Rd1 {[%clk 0:24:36]}  Rxd1 {[%clk 0:15:09]}
34. Kxd1 {[%clk 0:25:03]}  Bg7 {[%clk 0:11:46]} 35. Bxh7 {[%clk 0:23:51]}  e4 {[%clk 0:07:12]} 36. Bxe4 {[%clk 0:24:14]}  Bxc3 {[%clk 0:07:40]}
37. b5 {[%clk 0:24:39]}  Bd4 {[%clk 0:07:10]} 38. c6 {[%clk 0:24:13]}  axb5 {[%clk 0:07:30]} 39. axb5 {[%clk 0:24:38]} 1-0

[Event "2026 European Womens Championship"]
[Site "Batumi, GE"]
[Date "2026.05.26"]
[Round "2"]
[White "Avetisyan, Ani"]
[Black "Avramidou, Anastasia"]
[Result "0-1"]
[Board "46"]
[TimeControl "5400+30"]
[WhiteFideId "13319035"]
[BlackFideId "4239873"]
[WhiteElo "2052"]
[BlackElo "2320"]
[BlackTitle "FM"]
[WhiteClock "0:00:39"]
[BlackClock "0:01:57"]
[Variant "Standard"]

1. d4 {[%clk 1:30:57]}  Nf6 {[%clk 1:30:54]} 2. Nf3 {[%clk 1:31:25]}  c5 {[%clk 1:31:17]} 3. d5 {[%clk 1:31:46]}  b5 {[%clk 1:31:40]}
4. Bg5 {[%clk 1:32:11]}  Qb6 {[%clk 1:32:04]} 5. a4 {[%clk 1:30:03]}  b4 {[%clk 1:32:16]} 6. a5 {[%clk 1:22:04]}  Qd6 {[%clk 1:29:40]}
7. c4 {[%clk 1:19:34]}  g6 {[%clk 1:18:06]} 8. Nbd2 {[%clk 1:16:27]}  Bg7 {[%clk 1:15:23]} 9. g3 {[%clk 1:05:53]}  Qc7 {[%clk 1:10:35]}
10. Bg2 {[%clk 1:02:47]}  d6 {[%clk 1:10:29]} 11. Bxf6 {[%clk 0:59:23]}  Bxf6 {[%clk 1:10:12]} 12. Qc2 {[%clk 0:59:45]}  Na6 {[%clk 1:02:48]}
13. Qb3 {[%clk 0:56:41]}  O-O {[%clk 0:55:18]} 14. O-O {[%clk 0:56:01]}  e6 {[%clk 0:55:41]} 15. Ne4 {[%clk 0:53:18]}  Bg7 {[%clk 0:55:54]}
16. dxe6 {[%clk 0:50:54]}  Bxe6 {[%clk 0:54:40]} 17. Rfd1 {[%clk 0:50:04]}  Rad8 {[%clk 0:53:44]} 18. Neg5 {[%clk 0:36:47]}  Bc8 {[%clk 0:51:21]}
19. Nd2 {[%clk 0:28:49]}  Nb8 {[%clk 0:44:32]} 20. Nh3 {[%clk 0:22:38]}  Nc6 {[%clk 0:32:53]} 21. Bxc6 {[%clk 0:21:00]}  Bxh3 {[%clk 0:27:53]}
22. Bf3 {[%clk 0:14:11]}  Rfe8 {[%clk 0:22:04]} 23. Nf1 {[%clk 0:09:19]}  Bd4 {[%clk 0:22:23]} 24. e3 {[%clk 0:03:49]}  Be5 {[%clk 0:20:14]}
25. Nd2 {[%clk 0:03:56]}  h5 {[%clk 0:17:33]} 26. Bd5 {[%clk 0:03:29]}  Kg7 {[%clk 0:15:25]} 27. Ne4 {[%clk 0:02:22]}  Bf5 {[%clk 0:11:58]}
28. Ng5 {[%clk 0:02:08]}  Bf6 {[%clk 0:12:07]} 29. Nf3 {[%clk 0:01:19]}  h4 {[%clk 0:10:45]} 30. Kg2 {[%clk 0:00:35]}  Qc8 {[%clk 0:07:50]}
31. a6 {[%clk 0:00:35]}  Rh8 {[%clk 0:08:02]} 32. Rh1 {[%clk 0:00:38]}  Rh6 {[%clk 0:05:40]} 33. e4 {[%clk 0:00:45]}  Bh3+ {[%clk 0:04:55]}
34. Kg1 {[%clk 0:01:14]}  Rdh8 {[%clk 0:04:39]} 35. e5 {[%clk 0:00:33]}  dxe5 {[%clk 0:04:32]} 36. Qe3 {[%clk 0:00:50]}  e4 {[%clk 0:03:55]}
37. Qxe4 {[%clk 0:00:46]}  Re8 {[%clk 0:03:36]} 38. Qf4 {[%clk 0:01:14]}  Rh5 {[%clk 0:02:00]} 39. Nd2 {[%clk 0:00:34]}  Rf5 {[%clk 0:01:32]}
40. Qd6 {[%clk 0:00:31]}  Bd4 {[%clk 0:01:25]} 41. Ne4 {[%clk 0:00:35]}  Rxe4 {[%clk 0:01:42]} 42. Rf1 {[%clk 0:00:38]}  Re2 {[%clk 0:01:48]}
43. Bb7 {[%clk 0:00:39]}  Bxf2+ {[%clk 0:01:57]} 0-1

[Event "2026 European Womens Championship"]
[Site "Batumi, GE"]
[Date "2026.05.26"]
[Round "2"]
[White "Hariharan, Shambavi"]
[Black "Matnadze Bujiashvili, Ann"]
[Result "1/2-1/2"]
[Board "47"]
[TimeControl "5400+30"]
[WhiteFideId "488160"]
[BlackFideId "13601377"]
[WhiteElo "2008"]
[BlackElo "2310"]
[WhiteTitle "WFM"]
[BlackTitle "IM"]
[WhiteClock "0:17:18"]
[BlackClock "0:15:37"]
[Variant "Standard"]

1. d4 {[%clk 1:28:44]}  Nf6 {[%clk 1:30:56]} 2. c4 {[%clk 1:29:07]}  e6 {[%clk 1:31:19]} 3. Nc3 {[%clk 1:29:29]}  d5 {[%clk 1:31:41]}
4. cxd5 {[%clk 1:29:54]}  exd5 {[%clk 1:32:07]} 5. Bg5 {[%clk 1:30:15]}  c6 {[%clk 1:32:11]} 6. Qc2 {[%clk 1:29:38]}  Be7 {[%clk 1:32:29]}
7. e3 {[%clk 1:30:01]}  Nbd7 {[%clk 1:32:53]} 8. Bd3 {[%clk 1:30:19]}  Nf8 {[%clk 1:33:15]} 9. Nge2 {[%clk 1:30:24]}  Ne6 {[%clk 1:33:14]}
10. Bh4 {[%clk 1:30:32]}  g6 {[%clk 1:33:11]} 11. O-O {[%clk 1:30:19]}  O-O {[%clk 1:32:53]} 12. f3 {[%clk 1:30:35]}  b6 {[%clk 1:28:38]}
13. Bf2 {[%clk 1:27:45]}  c5 {[%clk 1:27:45]} 14. Qd2 {[%clk 1:26:33]}  Bb7 {[%clk 1:26:11]} 15. Rad1 {[%clk 1:25:17]}  Rc8 {[%clk 1:18:59]}
16. Kh1 {[%clk 1:23:05]}  cxd4 {[%clk 1:14:07]} 17. Nxd4 {[%clk 1:22:03]}  Nxd4 {[%clk 1:14:21]} 18. exd4 {[%clk 1:22:26]}  Ne8 {[%clk 1:14:01]}
19. Qe2 {[%clk 1:09:13]}  Nc7 {[%clk 1:00:38]} 20. f4 {[%clk 0:55:00]}  Ne6 {[%clk 0:40:23]} 21. Qf3 {[%clk 0:47:52]}  Bf6 {[%clk 0:38:49]}
22. Ne2 {[%clk 0:44:46]}  Qd7 {[%clk 0:29:18]} 23. Qg4 {[%clk 0:36:09]}  Nc5 {[%clk 0:24:11]} 24. Qxd7 {[%clk 0:34:20]}  Nxd7 {[%clk 0:24:39]}
25. f5 {[%clk 0:32:20]}  Bg7 {[%clk 0:18:09]} 26. Bh4 {[%clk 0:24:34]}  Nf6 {[%clk 0:16:33]} 27. Bxf6 {[%clk 0:22:43]}  Bxf6 {[%clk 0:17:01]}
28. fxg6 {[%clk 0:22:56]}  fxg6 {[%clk 0:17:21]} 29. g3 {[%clk 0:22:58]}  Rce8 {[%clk 0:14:04]} 30. Bb5 {[%clk 0:05:12]}  Re3 {[%clk 0:11:04]}
31. Nc3 {[%clk 0:04:36]}  Kg7 {[%clk 0:08:37]} 32. a3 {[%clk 0:01:55]}  h5 {[%clk 0:07:47]} 33. Kg1 {[%clk 0:01:08]}  Rh8 {[%clk 0:03:49]}
34. Kf2 {[%clk 0:00:50]}  Re7 {[%clk 0:03:57]} 35. h4 {[%clk 0:00:47]}  Rf8 {[%clk 0:03:42]} 36. Kg2 {[%clk 0:00:55]}  Re3 {[%clk 0:03:31]}
37. Rf4 {[%clk 0:00:53]}  Be7 {[%clk 0:01:04]} 38. Rxf8 {[%clk 0:01:04]}  Bxf8 {[%clk 0:01:33]} 39. Kf2 {[%clk 0:00:51]}  Re6 {[%clk 0:01:05]}
40. Be2 {[%clk 0:01:04]}  Rc6 {[%clk 0:00:40]} 41. Rc1 {[%clk 0:00:41]}  Be7 {[%clk 0:26:46]} 42. Bf3 {[%clk 0:21:40]}  Bf6 {[%clk 0:23:09]}
43. Rd1 {[%clk 0:20:55]}  Rc8 {[%clk 0:15:37]} 44. Rd2 {[%clk 0:17:18]} 1/2-1/2

[Event "2026 European Womens Championship"]
[Site "Batumi, GE"]
[Date "2026.05.26"]
[Round "2"]
[White "Zimina, Olga"]
[Black "Subramanian, Anusha"]
[Result "1-0"]
[Board "48"]
[TimeControl "5400+30"]
[WhiteFideId "4132190"]
[BlackFideId "477710"]
[WhiteElo "2290"]
[BlackElo "2068"]
[WhiteTitle "IM"]
[BlackTitle "WFM"]
[WhiteClock "0:08:49"]
[BlackClock "0:00:48"]
[Variant "Standard"]

1. d4 {[%clk 1:30:54]}  f5 {[%clk 1:30:55]} 2. e4 {[%clk 1:31:07]}  fxe4 {[%clk 1:31:18]} 3. Nc3 {[%clk 1:31:31]}  Nf6 {[%clk 1:31:43]}
4. Bg5 {[%clk 1:31:38]}  g6 {[%clk 1:30:42]} 5. h4 {[%clk 1:31:06]}  d5 {[%clk 1:18:04]} 6. h5 {[%clk 1:30:40]}  Rg8 {[%clk 1:12:12]}
7. hxg6 {[%clk 1:27:14]}  hxg6 {[%clk 1:12:11]} 8. f3 {[%clk 1:20:28]}  Qd6 {[%clk 1:07:26]} 9. Nge2 {[%clk 1:20:43]}  exf3 {[%clk 1:02:44]}
10. gxf3 {[%clk 1:20:29]}  Bf5 {[%clk 0:59:40]} 11. Qd2 {[%clk 1:14:53]}  Nbd7 {[%clk 0:55:25]} 12. O-O-O {[%clk 1:04:19]}  a6 {[%clk 0:50:35]}
13. Bh3 {[%clk 0:54:38]}  O-O-O {[%clk 0:42:53]} 14. Nf4 {[%clk 0:51:25]}  Nb6 {[%clk 0:40:47]} 15. Rde1 {[%clk 0:38:29]}  Nc4 {[%clk 0:27:44]}
16. Qe2 {[%clk 0:29:11]}  Qb4 {[%clk 0:16:40]} 17. Nd1 {[%clk 0:22:11]}  Kb8 {[%clk 0:08:29]} 18. Ne6 {[%clk 0:17:55]}  Rd6 {[%clk 0:07:27]}
19. Bxf5 {[%clk 0:17:42]}  gxf5 {[%clk 0:07:14]} 20. Bf4 {[%clk 0:16:14]}  Rd7 {[%clk 0:05:13]} 21. Reg1 {[%clk 0:15:34]}  Qa5 {[%clk 0:01:45]}
22. Kb1 {[%clk 0:12:54]}  Qb5 {[%clk 0:01:54]} 23. Ka1 {[%clk 0:13:14]}  Rxg1 {[%clk 0:00:41]} 24. Rxg1 {[%clk 0:13:39]}  Nh5 {[%clk 0:00:41]}
25. Rg8 {[%clk 0:08:38]}  Nxf4 {[%clk 0:00:33]} 26. Rxf8+ {[%clk 0:09:03]}  Ka7 {[%clk 0:00:55]} 27. Nxf4 {[%clk 0:09:27]}  Qb4 {[%clk 0:00:32]}
28. Rxf5 {[%clk 0:09:01]}  c6 {[%clk 0:00:32]} 29. c3 {[%clk 0:08:24]}  Qb6 {[%clk 0:00:33]} 30. Ne6 {[%clk 0:08:28]}  a5 {[%clk 0:00:34]}
31. Rf8 {[%clk 0:08:32]}  a4 {[%clk 0:00:48]} 32. Nc5 {[%clk 0:08:49]} 1-0

[Event "2026 European Womens Championship"]
[Site "Batumi, GE"]
[Date "2026.05.26"]
[Round "2"]
[White "Krkyasharyan, Sona"]
[Black "Unuk, Laura"]
[Result "0-1"]
[Board "49"]
[TimeControl "5400+30"]
[WhiteFideId "13316729"]
[BlackFideId "14609215"]
[WhiteElo "2063"]
[BlackElo "2289"]
[WhiteTitle "WFM"]
[BlackTitle "IM"]
[WhiteClock "1:05:26"]
[BlackClock "0:08:04"]
[Variant "Standard"]

1. d4 {[%clk 1:30:58]}  Nf6 {[%clk 1:30:34]} 2. c4 {[%clk 1:31:23]}  e6 {[%clk 1:30:59]} 3. Nf3 {[%clk 1:31:30]}  d5 {[%clk 1:30:58]}
4. g3 {[%clk 1:31:52]}  Bb4+ {[%clk 1:31:08]} 5. Bd2 {[%clk 1:32:16]}  Be7 {[%clk 1:31:07]} 6. Bg2 {[%clk 1:32:39]}  O-O {[%clk 1:31:28]}
7. O-O {[%clk 1:33:03]}  c6 {[%clk 1:31:03]} 8. Qc2 {[%clk 1:33:25]}  Nbd7 {[%clk 1:31:24]} 9. Rd1 {[%clk 1:33:46]}  a5 {[%clk 1:31:46]}
10. Bf4 {[%clk 1:34:10]}  a4 {[%clk 1:30:39]} 11. Nc3 {[%clk 1:29:04]}  dxc4 {[%clk 1:30:05]} 12. Nd2 {[%clk 1:28:24]}  Nb6 {[%clk 1:29:33]}
13. e4 {[%clk 1:27:03]}  Bd7 {[%clk 1:09:51]} 14. a3 {[%clk 1:26:16]}  Rc8 {[%clk 0:59:46]} 15. Nf3 {[%clk 1:26:07]}  Be8 {[%clk 0:42:16]}
16. Ne5 {[%clk 1:22:01]}  Nfd7 {[%clk 0:41:32]} 17. Nxa4 {[%clk 1:17:55]}  Nxa4 {[%clk 0:40:24]} 18. Qxa4 {[%clk 1:18:02]}  b5 {[%clk 0:38:40]}
19. Qc2 {[%clk 1:18:08]}  Nxe5 {[%clk 0:35:23]} 20. Bxe5 {[%clk 1:18:20]}  f6 {[%clk 0:35:49]} 21. Bf4 {[%clk 1:18:40]}  Bh5 {[%clk 0:36:16]}
22. Rd2 {[%clk 1:17:55]}  Qa5 {[%clk 0:33:14]} 23. Bh3 {[%clk 1:11:17]}  Bf7 {[%clk 0:30:31]} 24. d5 {[%clk 1:06:55]}  cxd5 {[%clk 0:26:51]}
25. exd5 {[%clk 1:07:18]}  exd5 {[%clk 0:20:55]} 26. Bxc8 {[%clk 1:07:26]}  Rxc8 {[%clk 0:21:22]} 27. Re1 {[%clk 1:05:30]}  Bf8 {[%clk 0:20:49]}
28. Rdd1 {[%clk 1:02:33]}  d4 {[%clk 0:11:36]} 29. Qf5 {[%clk 1:00:55]}  Rd8 {[%clk 0:11:06]} 30. Bd2 {[%clk 1:00:16]}  Qa4 {[%clk 0:08:18]}
31. Bc3 {[%clk 0:56:20]}  d3 {[%clk 0:08:37]} 32. Rd2 {[%clk 0:55:41]}  Qa6 {[%clk 0:07:32]} 33. Bb4 {[%clk 0:54:57]}  Bxb4 {[%clk 0:06:46]}
34. axb4 {[%clk 0:55:20]}  Bd5 {[%clk 0:06:08]} 35. f3 {[%clk 0:54:13]}  Qd6 {[%clk 0:06:04]} 36. Qh5 {[%clk 0:51:40]}  g6 {[%clk 0:05:17]}
37. Qg4 {[%clk 0:51:57]}  Qxb4 {[%clk 0:04:23]} 38. Qf4 {[%clk 0:52:16]}  Qf8 {[%clk 0:04:01]} 39. Kg2 {[%clk 0:47:55]}  Rd7 {[%clk 0:03:20]}
40. h4 {[%clk 0:45:55]}  h5 {[%clk 0:02:13]} 41. Qe3 {[%clk 0:42:43]}  Kg7 {[%clk 0:27:24]} 42. Ra1 {[%clk 1:11:12]}  Qd6 {[%clk 0:27:03]}
43. Kf2 {[%clk 1:10:19]}  Re7 {[%clk 0:23:26]} 44. Qd4 {[%clk 1:09:27]}  Qe6 {[%clk 0:23:29]} 45. Qc5 {[%clk 1:08:39]}  Kf7 {[%clk 0:22:27]}
46. Kg2 {[%clk 1:07:48]}  Qf5 {[%clk 0:22:05]} 47. Qf2 {[%clk 1:07:08]}  g5 {[%clk 0:17:05]} 48. hxg5 {[%clk 1:06:54]}  fxg5 {[%clk 0:17:30]}
49. Re1 {[%clk 1:05:24]}  Rxe1 {[%clk 0:15:48]} 50. Qxe1 {[%clk 1:05:50]}  g4 {[%clk 0:15:31]} 51. Qe3 {[%clk 1:05:42]}  Qxf3+ {[%clk 0:09:36]}
52. Qxf3+ {[%clk 1:05:45]}  Bxf3+ {[%clk 0:10:02]} 53. Kf2 {[%clk 1:05:56]}  Be2 {[%clk 0:09:49]} 54. Ke3 {[%clk 1:06:04]}  Kf6 {[%clk 0:10:06]}
55. Kd4 {[%clk 1:05:39]}  h4 {[%clk 0:06:57]} 56. gxh4 {[%clk 1:05:34]}  g3 {[%clk 0:07:25]} 57. Ke3 {[%clk 1:05:28]}  Kf5 {[%clk 0:07:34]}
58. b3 {[%clk 1:05:02]}  g2 {[%clk 0:07:38]} 59. Kf2 {[%clk 1:05:26]}  c3 {[%clk 0:08:04]} 0-1